bitfinex-derivatives/quotes_SOLF0:USTF0_20260207
["timestamp","ask_amount","ask_price","bid_price","bid_amount"]
[1770483744370,20.18620808,87.0,86.938,10.1778996]
[1770483745366,10.56508723,86.998,86.938,10.1778996]
[1770483745971,9.62112085,87.0,86.938,10.1778996]
[1770483746282,10.56508723,86.999,86.938,10.1778996]
[1770483746675,10.56508723,87.012,86.938,10.1778996]
[1770483746873,10.56508723,87.014,86.938,10.1778996]
[1770483747169,10.56508723,87.013,86.938,10.1778996]
[1770483747370,10.56508723,87.009,86.938,10.1778996]
[1770483747973,10.56508723,87.013,86.94,10.21457899]
[1770483748278,10.56508723,87.013,86.899,14.25714629]
[1770483748279,10.56508723,87.036,86.954,10.21457899]
[1770483748477,14.08678297,87.048,86.954,10.21457899]
[1770483748478,10.56508723,87.037,86.954,10.21457899]
[1770483748678,10.56508723,87.038,86.954,10.21457899]
[1770483748881,10.56508723,87.04,86.954,10.21457899]
[1770483749076,10.56508723,87.041,86.954,10.21457899]
[1770483749282,10.56508723,87.04,86.954,10.21457899]
[1770483749674,10.56508723,87.04,86.955,10.3592]
[1770483749975,10.56508723,87.04,86.956,10.20912346]
[1770483750377,10.56508723,87.039,86.956,10.20912346]
[1770483750780,10.56508723,87.039,86.959,10.20912346]
[1770483751176,10.56508723,87.04,86.959,10.20912346]
[1770483751377,10.56508723,87.039,86.962,10.21532162]
[1770483751580,10.56508723,87.038,86.962,10.21532162]
[1770483751883,10.56508723,87.039,86.962,10.21532162]
[1770483752082,10.56508723,87.033,86.962,10.21532162]
[1770483752278,10.56508723,87.032,86.962,10.21532162]
[1770483752581,10.56508723,87.036,86.962,10.21532162]
[1770483753179,10.56508723,87.037,86.962,10.21532162]
[1770483753380,10.56508723,87.038,86.962,10.21532162]
[1770483753780,10.56508723,87.017,86.962,10.21532162]
[1770483753982,10.56508723,87.004,86.931,10.22378482]
[1770483754184,10.56508723,87.006,86.931,10.22378482]
[1770483754578,9.62112085,87.03,86.931,10.22378482]
[1770483754579,10.56508723,87.001,86.931,10.22378482]
[1770483754781,2.5,87.001,86.931,10.22378482]
[1770483755082,13.06508723,87.001,86.931,10.22378482]
[1770483755384,10.56508723,86.997,86.931,10.22378482]
[1770483756085,10.56508723,86.996,86.931,10.22378482]
[1770483756678,10.56508723,86.991,86.916,10.21649006]
[1770483756879,10.354,86.999,86.916,10.21649006]
[1770483756880,10.56508723,86.977,86.916,10.21649006]
[1770483757484,10.56508723,86.975,86.916,10.21649006]
[1770483757680,9.62112085,86.99,86.916,10.21649006]
[1770483757681,10.56508723,86.971,86.916,10.21649006]
[1770483758385,9.62112085,86.99,86.916,10.21649006]
[1770483758386,10.56508723,86.967,86.916,10.21649006]
[1770483758985,10.56508723,86.961,86.901,10.19920294]
[1770483759183,10.56508723,86.958,86.901,10.19920294]
[1770483759382,10.56508723,86.954,86.901,10.19920294]
[1770483759583,10.56508723,86.941,86.855,10.24800595]
[1770483759783,10.56508723,86.934,86.855,10.24800595]
[1770483760186,10.56508723,86.937,86.855,10.24800595]
[1770483760388,10.56508723,86.903,86.838,10.24800595]
[1770483760585,10.56508723,86.905,86.838,10.24800595]
[1770483760889,10.56508723,86.921,86.838,10.24800595]
[1770483761086,10.56508723,86.926,86.838,10.24800595]
[1770483761288,10.3581,86.965,86.82,11.61976545]
[1770483761289,10.56508723,86.945,86.841,10.2195889]
[1770483761489,28.17356595,86.99,86.82,1.9986446]
[1770483761490,10.56508723,86.936,86.849,10.2195889]
[1770483761683,10.56508723,86.941,86.849,10.2195889]
[1770483762088,10.56508723,86.948,86.849,10.2195889]
[1770483762485,10.56508723,86.949,86.853,10.2195889]
[1770483762786,10.56508723,86.954,86.86,9.62112085]
[1770483762988,10.56508723,86.961,86.861,10.2195889]
[1770483763183,10.56508723,86.963,86.861,10.2195889]
[1770483763384,10.56508723,86.964,86.861,10.2195889]
[1770483763888,10.56508723,86.964,86.869,10.41435102]
[1770483764391,10.56508723,86.963,86.869,10.41435102]
[1770483764892,10.56508723,86.964,86.869,10.41435102]
[1770483766691,10.56508723,86.955,86.869,10.41435102]
[1770483766888,10.56508723,86.964,86.873,10.31646206]
[1770483767085,10.56508723,86.965,86.873,10.31646206]
[1770483767389,10.56508723,86.976,86.892,10.29753386]
[1770483767690,10.56508723,86.979,86.892,10.29753386]
[1770483767884,10.56508723,86.98,86.893,10.3665]
[1770483768087,9.62112085,86.99,86.894,10.29753386]
[1770483768088,10.56508723,86.985,86.894,10.29753386]
[1770483768482,10.56508723,86.984,86.894,10.29753386]
[1770483768687,10.56508723,86.984,86.895,10.3664]
[1770483768888,10.56508723,86.984,86.896,10.29753386]
[1770483769283,10.56508723,86.988,86.896,10.29753386]
[1770483770490,10.56508723,86.989,86.896,10.29753386]
[1770483770689,10.56508723,86.989,86.9,10.32067397]
[1770483770991,2.5,87.001,86.9,10.32067397]
[1770483771193,10.56508723,86.999,86.9,10.32067397]
[1770483771495,10.56508723,86.993,86.924,10.31260022]
[1770483771888,10.56508723,86.986,86.924,10.31260022]
[1770483772289,10.56508723,86.988,86.924,10.31260022]
[1770483772790,10.56508723,86.989,86.924,10.31260022]
[1770483772991,10.56508723,86.999,86.924,10.31260022]
[1770483773196,13.06508723,87.001,86.924,10.31260022]
[1770483773396,2.5,87.001,86.924,10.31260022]
[1770483773596,10.56508723,86.998,86.924,10.31260022]
[1770483773791,2.5,87.001,86.924,10.31260022]
[1770483774893,2.5,87.001,86.926,10.26784611]
[1770483776596,10.56508723,86.993,86.926,10.26784611]
[1770483776796,10.56508723,86.994,86.926,10.26784611]
[1770483777001,10.56508723,86.995,86.926,10.26784611]
[1770483777201,10.56508723,86.993,86.926,10.26784611]
[1770483777799,10.56508723,86.994,86.926,10.26784611]
[1770483778603,10.56508723,86.998,86.926,10.26784611]
[1770483779000,2.5,87.001,86.926,10.26784611]
[1770483779801,10.56508723,86.989,86.926,10.26784611]
[1770483780100,10.56508723,86.988,86.926,10.26784611]
[1770483780297,10.56508723,86.989,86.926,10.26784611]
[1770483780705,10.56508723,86.993,86.926,10.26784611]
[1770483780906,10.56508723,86.988,86.926,10.26784611]
[1770483781309,10.56508723,86.983,86.926,10.26784611]
[1770483781504,10.56508723,86.982,86.926,10.26784611]
[1770483781905,10.56508723,86.984,86.926,10.26784611]
[1770483782607,10.56508723,86.993,86.926,10.26784611]
[1770483783001,2.5,87.001,86.926,10.26784611]
[1770483783002,10.56508723,86.998,86.926,10.26784611]
[1770483783809,2.5,87.001,86.926,10.26784611]
[1770483783997,10.56508723,86.991,86.926,10.26784611]
[1770483784200,10.56508723,86.995,86.926,10.26784611]
[1770483784398,10.56508723,86.997,86.926,10.26784611]
[1770483784901,2.5,87.001,86.926,10.26784611]
[1770483786198,2.5,87.001,86.927,10.3625]
[1770483786509,2.5,87.001,86.928,10.27745075]
[1770483787316,2.5,87.001,86.933,10.32258701]
[1770483788113,10.56508723,87.04,86.951,10.32258701]
[1770483788316,10.56508723,87.049,86.951,10.32258701]
[1770483788513,10.56508723,87.05,86.951,10.32258701]
[1770483789209,10.56508723,87.056,86.951,10.32258701]
[1770483789411,21.31160704,87.079,86.976,9.0283338]
[1770483789412,10.56508723,87.066,86.976,9.0283338]
[1770483789616,9.62231459,87.08,86.976,9.0283338]
[1770483790005,10.56508723,87.091,86.995,9.0283338]
[1770483790218,447.91280632,87.094,86.995,9.0283338]
[1770483790718,10.56508723,87.099,86.997,9.0283338]
[1770483791009,9.62231459,87.1,86.997,9.0283338]
[1770483791214,9.62231459,87.1,87.0,9.03677621]
[1770483792113,9.62231459,87.08,87.016,9.03677621]
[1770483792513,9.62231459,87.08,87.001,9.03677621]
[1770483794219,9.62231459,87.06,87.001,9.03677621]
[1770483794513,9.62231459,87.06,86.96,9.03439427]
[1770483795416,9.62231459,87.06,86.979,9.03867135]
[1770483796618,9.62231459,87.06,86.95,9.62231459]
[1770483796619,9.62231459,87.06,86.981,9.03867135]
[1770483797820,9.62231459,87.04,86.981,9.03867135]
[1770483798415,9.62231459,87.04,86.946,9.03710008]
[1770483798719,9.62231459,87.02,86.946,9.03710008]
[1770483799222,9.62231459,87.04,86.946,9.03710008]
[1770483799515,10.56508723,87.058,86.951,9.0417538]
[1770483799718,9.62231459,87.06,86.951,9.0417538]
[1770483800516,9.62231459,87.06,86.968,9.0417538]
[1770483803219,9.62231459,87.06,86.97,9.02517935]
[1770483803419,10.56508723,87.077,86.97,9.02517935]
[1770483803619,20.18740182,87.08,86.971,9.02517935]
[1770483804028,20.18740182,87.08,86.988,9.02517935]
[1770483804227,9.62231459,87.08,86.988,9.02517935]
[1770483804726,20.18740182,87.08,86.988,9.02517935]
[1770483805527,10.56508723,87.086,86.99,9.03542502]
[1770483805728,10.56508723,87.103,86.991,9.03542502]
[1770483806122,10.56508723,87.102,86.991,9.03542502]
[1770483806321,10.56508723,87.104,86.991,9.03542502]
[1770483806723,9.62231459,87.09,87.009,9.03542502]
[1770483806924,9.62231459,87.07,87.009,9.03542502]
[1770483808121,9.62231459,87.07,86.973,9.02703556]
[1770483808328,10.56508723,87.067,86.973,9.02703556]
[1770483809019,9.62231459,87.07,86.976,9.02703556]
[1770483809425,10.56508723,87.081,86.998,9.01844368]
[1770483809724,10.56508723,87.086,87.01,9.62231459]
[1770483810028,10.56508723,87.126,87.036,9.01844368]
[1770483810221,9.62231459,87.13,87.036,9.01844368]
[1770483810424,10.56508723,87.133,87.036,9.01844368]
[1770483810621,10.56508723,87.134,87.036,9.01844368]
[1770483811019,10.56508723,87.134,87.03,9.62231459]
[1770483811020,10.56508723,87.142,87.041,9.01844368]
[1770483811213,9.62231459,87.15,87.041,9.01844368]
[1770483811214,10.56508723,87.144,87.041,9.01844368]
[1770483811729,10.56508723,87.148,87.041,9.01844368]
[1770483812022,9.62231459,87.15,87.041,9.01844368]
[1770483812527,10.56508723,87.149,87.041,9.01844368]
[1770483812727,10.56508723,87.149,87.049,8.99769483]
[1770483813127,9.62231459,87.15,87.049,8.99769483]
[1770483814925,9.62231459,87.15,87.053,8.93923725]
[1770483815628,9.62231459,87.15,87.055,8.96352767]
[1770483816831,9.62231459,87.15,87.057,8.96353757]
[1770483817219,9.62231459,87.15,87.06,8.95096825]
[1770483817420,9.62231459,87.18,87.071,8.95096825]
[1770483818824,9.62231459,87.18,87.083,8.95096825]
[1770483819428,9.62231459,87.16,87.083,8.95096825]
[1770483819924,9.62231459,87.16,87.011,34.5]
[1770483819925,9.62231459,87.14,87.031,8.94750848]
[1770483820723,9.62231459,87.14,87.049,8.94750848]
[1770483824531,9.62231459,87.16,87.053,8.94731254]
[1770483825128,9.62231459,87.16,87.055,8.94233192]
[1770483825328,10.3351,87.159,87.055,8.94233192]
[1770483825728,10.3351,87.159,87.05,9.62231459]
[1770483825729,9.62231459,87.17,87.057,8.94233192]
[1770483826836,10.3341,87.167,87.059,8.94233192]
[1770483827238,10.3364,87.148,87.059,8.94233192]
[1770483828030,10.56508723,87.164,87.06,7.68065322]
[1770483829234,10.335,87.159,87.06,7.68065322]
[1770483829435,9.62231459,87.15,87.06,7.68065322]
[1770483829946,10.335,87.159,87.062,7.68242371]
[1770483830134,9.62231459,87.15,87.062,7.68242371]
[1770483830639,10.3363,87.148,87.062,7.68242371]
[1770483830839,9.62231459,87.13,87.062,7.68242371]
[1770483832538,10.56508723,87.142,87.062,7.68242371]
[1770483832732,10.3368,87.144,87.062,7.68242371]
[1770483832934,9.62231459,87.15,87.062,7.68242371]
[1770483833135,10.56508723,87.158,87.062,7.68242371]
[1770483833341,9.62231459,87.17,87.071,7.68867785]
[1770483834053,9.62231459,87.17,87.081,7.68867785]
[1770483834541,10.56508723,87.176,87.081,7.68867785]
[1770483834744,10.56508723,87.175,87.081,7.68867785]
[1770483835044,10.56508723,87.176,87.081,7.68867785]
[1770483835341,10.56508723,87.177,87.081,7.68867785]
[1770483835745,10.56508723,87.176,87.081,7.68867785]
[1770483836240,9.58578436,87.18,87.084,7.73697052]
[1770483837043,10.56508723,87.177,87.084,7.73697052]
[1770483837234,10.56508723,87.178,87.084,7.73697052]
[1770483837544,9.58578436,87.18,87.084,7.73697052]
[1770483838043,10.56508723,87.178,87.084,7.73697052]
[1770483838244,9.58578436,87.18,87.084,7.73697052]
[1770483838245,10.56508723,87.179,87.084,7.73697052]
[1770483839343,10.3329,87.177,87.084,7.73697052]
[1770483839545,9.58578436,87.16,87.084,7.73697052]
[1770483841143,9.58578436,87.18,87.084,7.73697052]
[1770483841346,9.58578436,87.18,87.087,7.72158745]
[1770483841547,10.56508723,87.177,87.087,7.72158745]
[1770483841741,9.58578436,87.18,87.087,7.72158745]
[1770483844248,9.58578436,87.18,87.089,7.73191771]
[1770483844849,10.3329,87.177,87.092,7.73191771]
[1770483845344,10.3349,87.161,87.092,7.73191771]
[1770483846553,9.58578436,87.17,87.092,7.73191771]
[1770483848440,10.56508723,87.176,87.092,7.73191771]
[1770483848641,20.89798723,87.177,87.092,7.73191771]
[1770483849253,10.56508723,87.175,87.092,7.73191771]
[1770483849444,10.56508723,87.174,87.092,7.73191771]
[1770483849849,10.56508723,87.169,87.092,7.73191771]
[1770483850248,10.56508723,87.171,87.092,7.73191771]
[1770483850650,10.56508723,87.162,87.092,7.73191771]
[1770483850955,10.56508723,87.153,87.092,7.73191771]
[1770483851150,10.56508723,87.146,87.058,7.81747476]
[1770483851355,10.56508723,87.141,87.058,7.81747476]
[1770483851554,10.56508723,87.14,87.058,7.81747476]
[1770483851853,10.56508723,87.125,87.058,7.81747476]
[1770483852051,10.56508723,87.121,87.058,7.81747476]
[1770483852453,10.56508723,87.116,87.058,7.81747476]
[1770483852660,9.58578436,87.11,87.058,7.81747476]
[1770483852959,10.56508723,87.103,87.022,7.81747476]
[1770483853155,10.56508723,87.099,87.022,7.81747476]
[1770483854260,10.56508723,87.095,87.022,7.81747476]
[1770483854453,10.56508723,87.107,87.025,7.77654819]
[1770483854856,10.56508723,87.109,87.025,7.77654819]
[1770483855155,10.56508723,87.1,87.027,7.67864235]
[1770483855555,14.08678297,87.112,87.027,7.67864235]
[1770483855556,10.56508723,87.101,87.027,7.67864235]
[1770483856758,10.56508723,87.101,87.029,7.67864235]
[1770483856964,10.56508723,87.115,87.029,7.67864235]
[1770483857159,10.56508723,87.102,87.029,7.67864235]
[1770483857465,10.56508723,87.108,87.029,7.67864235]
[1770483857666,10.56508723,87.111,87.029,7.67864235]
[1770483858158,10.56508723,87.113,87.029,7.67864235]
[1770483858364,10.56508723,87.113,87.031,7.73061065]
[1770483858766,10.56508723,87.114,87.036,7.73061065]
[1770483858962,10.56508723,87.118,87.036,7.73061065]
[1770483859163,10.56508723,87.123,87.036,7.73061065]
[1770483859365,10.56508723,87.127,87.041,7.7807769]
[1770483859565,10.56508723,87.132,87.041,7.7807769]
[1770483859865,10.56508723,87.133,87.041,7.7807769]
[1770483860269,10.56508723,87.131,87.041,7.7807769]
[1770483860471,10.56508723,87.129,87.041,7.7807769]
[1770483860869,10.56508723,87.128,87.048,7.7807769]
[1770483861072,10.56508723,87.129,87.048,7.7807769]
[1770483861371,10.56508723,87.131,87.048,7.7807769]
[1770483861766,10.56508723,87.133,87.053,7.75438901]
[1770483862265,10.56508723,87.134,87.053,7.75438901]
[1770483863073,10.56508723,87.134,87.056,7.75438901]
[1770483863274,10.56508723,87.139,87.056,7.75438901]
[1770483865571,20.90258723,87.138,87.056,7.75438901]
[1770483865777,10.56508723,87.115,87.056,7.75438901]
[1770483867073,10.56508723,87.116,87.056,7.75438901]
[1770483867278,31.64910704,87.138,87.056,7.75438901]
[1770483867279,10.56508723,87.114,87.056,7.75438901]
[1770483868071,10.56508723,87.115,87.056,7.75438901]
[1770483868472,10.56508723,87.12,87.056,7.75438901]
[1770483868672,10.56508723,87.115,87.056,7.75438901]
[1770483869174,10.56508723,87.116,87.056,7.75438901]
[1770483870476,9.58578436,87.12,87.056,7.75438901]
[1770483870477,10.56508723,87.107,87.056,7.75438901]
[1770483870685,10.56508723,87.107,87.039,7.76813197]
[1770483870871,10.56508723,87.106,87.039,7.76813197]
[1770483871070,10.56508723,87.107,87.039,7.76813197]
[1770483871275,10.56508723,87.102,87.039,7.76813197]
[1770483871685,10.56508723,87.092,87.023,7.76147967]
[1770483871988,10.56508723,87.094,87.023,7.76147967]
[1770483872188,10.56508723,87.092,87.023,7.76147967]
[1770483872396,10.56508723,87.093,87.023,7.76147967]
[1770483872686,10.56508723,87.097,87.023,7.76147967]
[1770483873089,10.56508723,87.096,87.023,7.76147967]
[1770483873391,10.56508723,87.094,87.023,7.76147967]
[1770483873788,10.56508723,87.094,87.025,7.7736398]
[1770483874489,10.56508723,87.103,87.027,7.7736398]
[1770483874692,10.56508723,87.104,87.027,7.7736398]
[1770483875193,10.56508723,87.095,87.032,7.78589908]
[1770483875390,10.56508723,87.096,87.032,7.78589908]
[1770483875787,10.56508723,87.095,87.032,7.78589908]
[1770483876588,10.56508723,87.098,87.032,7.78589908]
[1770483876789,10.56508723,87.096,87.032,7.78589908]
[1770483877992,10.56508723,87.097,87.032,7.78589908]
[1770483878189,10.56508723,87.096,87.032,7.78589908]
[1770483878386,10.56508723,87.093,87.032,7.78589908]
[1770483878588,10.56508723,87.095,87.032,7.78589908]
[1770483879092,10.56508723,87.097,87.032,7.78589908]
[1770483879492,10.56508723,87.098,87.032,7.78589908]
[1770483879893,10.56508723,87.109,87.032,7.78589908]
[1770483880095,10.56508723,87.109,87.016,7.78165656]
[1770483880295,21.31160704,87.132,87.016,7.78165656]
[1770483880296,9.58578436,87.08,87.016,7.78165656]
[1770483880889,10.56508723,87.093,87.019,7.78165656]
[1770483881198,9.58578436,87.1,87.019,7.78165656]
[1770483881697,9.58578436,87.1,87.021,7.77468261]
[1770483882195,10.56508723,87.098,87.021,7.77468261]
[1770483882397,10.56508723,87.106,87.021,7.77468261]
[1770483882596,14.08678297,87.115,87.021,7.77468261]
[1770483882796,10.66857606,87.106,87.021,7.77468261]
[1770483882988,10.66857606,87.104,87.021,7.77468261]
[1770483883193,10.66857606,87.108,87.021,7.77468261]
[1770483883392,10.66857606,87.11,87.021,7.77468261]
[1770483883596,10.66857606,87.108,87.024,7.77076819]
[1770483883796,10.66857606,87.11,87.024,7.77076819]
[1770483884801,10.66857606,87.11,87.026,7.77076819]
[1770483885191,10.66857606,87.111,87.026,7.77076819]
[1770483885496,10.66857606,87.11,87.026,7.77076819]
[1770483885697,10.66857606,87.109,87.026,7.77076819]
[1770483885894,10.66857606,87.091,87.026,7.77076819]
[1770483886095,10.66857606,87.095,87.026,7.77076819]
[1770483886296,10.66857606,87.096,87.026,7.77076819]
[1770483886491,10.66857606,87.095,87.026,7.77076819]
[1770483887398,10.66857606,87.094,87.026,7.77076819]
[1770483888103,10.66857606,87.097,87.026,7.77076819]
[1770483888298,10.66857606,87.098,87.026,7.77076819]
[1770483889099,10.66857606,87.099,87.026,7.77076819]
[1770483889298,9.58578436,87.1,87.026,7.77076819]
[1770483889506,10.66857606,87.086,87.026,7.77076819]
[1770483890602,10.66857606,87.081,87.026,7.77076819]
[1770483891300,10.66857606,87.098,87.031,7.76804449]
[1770483891500,10.66857606,87.121,87.031,7.76804449]
[1770483892005,10.66857606,87.125,87.049,7.76804449]
[1770483892596,10.66857606,87.139,87.069,7.76804449]
[1770483892801,10.66857606,87.143,87.069,7.76804449]
[1770483893105,10.66857606,87.144,87.069,7.76804449]
[1770483893305,10.66857606,87.145,87.069,7.76804449]
[1770483893506,10.66857606,87.144,87.069,7.76804449]
[1770483893708,10.66857606,87.149,87.071,7.72799377]
[1770483893909,10.66857606,87.154,87.071,7.72799377]
[1770483894099,10.66857606,87.158,87.071,7.72799377]
[1770483894501,10.66857606,87.167,87.098,7.72799377]
[1770483896304,14.08678297,87.179,87.098,7.72799377]
[1770483896305,10.66857606,87.169,87.098,7.72799377]
[1770483897006,10.66857606,87.169,87.08,9.58289866]
[1770483897007,10.66857606,87.178,87.1,7.66164194]
[1770483897310,10.66857606,87.182,87.1,7.66164194]
[1770483897709,10.66857606,87.182,87.104,7.6611427]
[1770483898309,10.66857606,87.184,87.104,7.6611427]
[1770483898609,10.66857606,87.184,87.108,7.6611427]
[1770483899312,10.66857606,87.186,87.108,7.6611427]
[1770483899905,10.66857606,87.19,87.108,7.6611427]
[1770483900413,10.66857606,87.191,87.108,7.6611427]
[1770483900610,10.66857606,87.191,87.111,7.67709541]
[1770483900807,438.96698163,87.197,87.111,7.67709541]
[1770483900808,10.66857606,87.195,87.111,7.67709541]
[1770483901010,438.96698163,87.197,87.111,7.67709541]
[1770483901410,10.66857606,87.203,87.111,7.67709541]
[1770483901809,10.66857606,87.203,87.115,7.69184469]
[1770483902009,9.58289866,87.19,87.115,7.69184469]
[1770483902214,10.66857606,87.169,87.071,7.69184469]
[1770483902406,10.66857606,87.159,87.079,7.69184469]
[1770483902607,10.66857606,87.155,87.079,7.69184469]
[1770483902814,20.25147472,87.15,87.079,7.69184469]
[1770483903013,9.58289866,87.13,87.063,7.69184469]
[1770483903510,9.58289866,87.11,87.019,7.67115589]
[1770483904016,10.66857606,87.102,87.019,7.67115589]
[1770483904308,10.66857606,87.101,87.019,7.67115589]
[1770483904511,10.66857606,87.102,87.019,7.67115589]
[1770483904916,10.66857606,87.101,87.019,7.67115589]
[1770483905807,10.66857606,87.106,87.019,7.67115589]
[1770483906216,10.66857606,87.108,87.019,7.67115589]
[1770483906412,9.58289866,87.11,87.019,7.67115589]
[1770483906617,10.66857606,87.117,87.023,7.70535904]
[1770483906816,10.66857606,87.121,87.023,7.70535904]
[1770483907014,10.66857606,87.119,87.023,7.70535904]
[1770483907214,10.66857606,87.117,87.023,7.70535904]
[1770483907408,10.66857606,87.117,86.971,14.24566791]
[1770483907409,9.58289866,87.11,87.026,7.70370443]
[1770483909119,21.31160704,87.139,87.028,7.6619315]
[1770483909120,10.66857606,87.122,87.028,7.6619315]
[1770483909420,10.66857606,87.128,87.028,7.6619315]
[1770483909620,20.25147472,87.13,87.028,7.6619315]
[1770483910208,9.58289866,87.13,87.028,7.6619315]
[1770483910616,10.66857606,87.136,87.03,7.6619315]
[1770483911117,10.66857606,87.139,87.036,7.67294551]
[1770483911323,10.66857606,87.14,87.041,7.67294551]
[1770483911523,10.66857606,87.143,87.041,7.67294551]
[1770483912018,10.66857606,87.141,87.041,7.67294551]
[1770483912413,19.91909866,87.15,87.041,7.67294551]
[1770483912414,10.66857606,87.142,87.041,7.67294551]
[1770483912623,10.3386,87.129,87.045,7.67294551]
[1770483913623,9.58289866,87.13,87.045,7.67294551]
[1770483913821,20.25147472,87.13,87.045,7.67294551]
[1770483914229,10.66857606,87.129,87.045,7.67294551]
[1770483914419,20.25147472,87.13,87.045,7.67294551]
[1770483915125,9.58289866,87.13,87.045,7.67294551]
[1770483915323,10.66857606,87.148,87.045,7.67294551]
[1770483915525,10.66857606,87.149,87.045,7.67294551]
[1770483916020,10.66857606,87.147,87.045,7.67294551]
[1770483916225,9.58289866,87.13,87.047,7.68462905]
[1770483917622,9.58289866,87.11,87.047,7.68462905]
[1770483920519,10.66857606,87.129,87.047,7.68462905]
[1770483920727,9.58289866,87.13,87.047,7.68462905]
[1770483921224,9.58289866,87.13,87.02,9.58289866]
[1770483921225,9.58289866,87.13,87.052,7.68369357]
[1770483921431,9.58289866,87.15,87.052,7.68369357]
[1770483922420,20.25147472,87.15,87.052,7.68369357]
[1770483922622,10.66857606,87.142,87.052,7.68369357]
[1770483922822,10.66857606,87.142,87.071,7.68369357]
[1770483923625,9.58289866,87.13,87.052,7.67479877]
[1770483925334,10.6586105,87.123,87.052,7.67479877]
[1770483925524,10.6586105,87.119,87.052,7.67479877]
[1770483926224,10.6586105,87.118,87.052,7.67479877]
[1770483926428,10.6586105,87.119,87.052,7.67479877]
[1770483927027,10.3387,87.129,87.052,7.67479877]
[1770483927028,10.6586105,87.123,87.052,7.67479877]
[1770483927227,10.6586105,87.119,87.052,7.67479877]
[1770483927429,10.6586105,87.123,87.052,7.67479877]
[1770483927624,10.6586105,87.118,87.052,7.67479877]
[1770483928233,10.6586105,87.108,87.052,7.67479877]
[1770483928625,9.58289866,87.11,87.052,7.67479877]
[1770483929328,10.6586105,87.122,87.052,7.67479877]
[1770483929625,10.6586105,87.127,87.052,7.67479877]
[1770483930032,10.6586105,87.12,87.052,7.67479877]
[1770483930231,10.6586105,87.124,87.052,7.67479877]
[1770483930625,10.6586105,87.126,87.052,7.67479877]
[1770483930829,10.6586105,87.124,87.052,7.67479877]
[1770483931132,10.6586105,87.118,87.052,7.67479877]
[1770483931327,10.6586105,87.117,87.052,7.67479877]
[1770483932232,10.6586105,87.116,87.052,7.67479877]
[1770483932736,10.6586105,87.112,87.052,7.67479877]
[1770483933627,9.58289866,87.11,87.052,7.67479877]
[1770483934631,10.6586105,87.107,87.052,7.67479877]
[1770483935429,10.6586105,87.106,87.052,7.67479877]
[1770483936437,10.6586105,87.111,87.052,7.67479877]
[1770483936631,10.6586105,87.12,87.052,7.67479877]
[1770483936830,10.6586105,87.117,87.052,7.67479877]
[1770483937027,10.6586105,87.108,87.052,7.67479877]
[1770483937230,10.6586105,87.106,87.052,7.67479877]
[1770483937436,31.63675767,87.129,87.052,7.67479877]
[1770483937437,10.6586105,87.108,87.052,7.67479877]
[1770483938036,10.6586105,87.106,87.052,7.67479877]
[1770483938330,10.6586105,87.109,87.052,7.67479877]
[1770483939038,10.6586105,87.135,87.052,7.67479877]
[1770483939232,10.6586105,87.133,87.052,7.67479877]
[1770483939542,10.3357,87.153,87.054,7.7308602]
[1770483939543,10.6586105,87.132,87.054,7.7308602]
[1770483940139,10.6586105,87.132,87.002,14.24566791]
[1770483940140,10.6586105,87.132,87.055,7.7308602]
[1770483940339,10.6586105,87.147,87.055,7.7308602]
[1770483940534,9.58289866,87.16,87.055,7.7308602]
[1770483940535,10.6586105,87.151,87.055,7.7308602]
[1770483940735,10.6586105,87.151,87.072,7.7308602]
[1770483940936,10.6586105,87.152,87.072,7.7308602]
[1770483941135,10.6586105,87.153,87.072,7.7308602]
[1770483941340,10.6586105,87.161,87.072,7.7308602]
[1770483941729,10.6586105,87.161,87.08,7.79537357]
[1770483941937,10.6586105,87.158,87.08,7.79537357]
[1770483942243,10.6586105,87.16,87.08,7.79537357]
[1770483942435,10.3338,87.169,87.08,7.79537357]
[1770483942436,10.6586105,87.159,87.08,7.79537357]
[1770483943349,10.6586105,87.158,87.08,7.79537357]
[1770483943640,10.6586105,87.157,87.08,7.79537357]
[1770483944043,10.6586105,87.18,87.091,7.80016711]
[1770483944343,10.6586105,87.181,87.091,7.80016711]
[1770483944537,10.6586105,87.181,87.103,7.80016711]
[1770483944735,10.6586105,87.179,87.103,7.80016711]
[1770483944931,10.6586105,87.182,87.103,7.80016711]
[1770483945141,10.6586105,87.184,87.103,7.80016711]
[1770483945640,10.6586105,87.189,87.113,7.79160905]
[1770483945835,10.6586105,87.193,87.113,7.79160905]
[1770483946142,10.6586105,87.198,87.113,7.79160905]
[1770483946444,10.6586105,87.2,87.113,7.79160905]
[1770483947042,10.6586105,87.193,87.113,7.79160905]
[1770483947230,10.6586105,87.191,87.113,7.79160905]
[1770483947630,10.6586105,87.189,87.113,7.79160905]
[1770483948237,35.63657541,87.267,87.113,7.79160905]
[1770483948238,10.6586105,87.206,87.113,7.79160905]
[1770483949143,10.6586105,87.209,87.113,7.79160905]
[1770483949739,10.6586105,87.209,87.122,7.80049898]
[1770483950135,10.6586105,87.208,87.122,7.80049898]
[1770483950744,10.65130986,87.223,87.151,7.80049898]
[1770483950934,10.3249,87.245,87.151,7.80049898]
[1770483951140,9.58289866,87.24,87.151,7.80049898]
[1770483951939,10.3257,87.238,87.151,7.80049898]
[1770483953245,9.58289866,87.22,87.151,7.80049898]